[Event "Late-Titled-Tuesday-Blitz-April-30-2024"]
[Site "Chess.com"]
[Date "2024.04.30"]
[Round "10"]
[White "MKlose11"]
[Black "FabianoCaruana"]
[Result "0-1"]
[WhiteElo "2687"]
[BlackElo "3078"]
[TimeControl "180+1"]
[EndTime "15:53:20 PDT"]
[Termination "FabianoCaruana won by resignation"]

1. e4 {[%clk 0:03:00.9]} 1... c5 {[%clk 0:02:58.8]} 2. Nc3 {[%clk 0:02:53.1]}
2... Nc6 {[%clk 0:02:58.4]} 3. d3 {[%clk 0:02:51.4]} 3... g6 {[%clk 0:02:58.4]}
4. g3 {[%clk 0:02:51.3]} 4... Bg7 {[%clk 0:02:58.7]} 5. Be3 {[%clk 0:02:51.6]}
5... d6 {[%clk 0:02:58.2]} 6. Qd2 {[%clk 0:02:52]} 6... h5 {[%clk 0:02:57.7]} 7.
h3 {[%clk 0:02:51.9]} 7... e6 {[%clk 0:02:54.5]} 8. Bg2 {[%clk 0:02:52.2]} 8...
Nge7 {[%clk 0:02:55]} 9. Nge2 {[%clk 0:02:52.4]} 9... Rb8 {[%clk 0:02:55.3]} 10.
O-O {[%clk 0:02:52.5]} 10... b5 {[%clk 0:02:55.6]} 11. f4 {[%clk 0:02:52.8]}
11... b4 {[%clk 0:02:55.6]} 12. Nd1 {[%clk 0:02:53.1]} 12... a5 {[%clk
0:02:54.7]} 13. f5 {[%clk 0:02:52.3]} 13... Be5 {[%clk 0:02:43.9]} 14. fxe6
{[%clk 0:02:31.4]} 14... Bxe6 {[%clk 0:02:41.6]} 15. Nf4 {[%clk 0:02:30]} 15...
Qd7 {[%clk 0:02:31.6]} 16. h4 {[%clk 0:02:19.9]} 16... O-O {[%clk 0:02:24.7]}
17. Kh2 {[%clk 0:02:20]} 17... Bg4 {[%clk 0:02:17.8]} 18. Rb1 {[%clk 0:02:16.9]}
18... Nd4 {[%clk 0:02:15.4]} 19. Rc1 {[%clk 0:02:10.6]} 19... Ne6 {[%clk
0:02:07.1]} 20. Nf2 {[%clk 0:02:04.4]} 20... Bxb2 {[%clk 0:02:04.6]} 21. Nd5
{[%clk 0:01:42.9]} 21... Nxd5 {[%clk 0:02:02]} 22. exd5 {[%clk 0:01:43.3]} 22...
Nd4 {[%clk 0:01:56.7]} 23. Ne4 {[%clk 0:01:36.1]} 23... f5 {[%clk 0:01:52.3]}
24. Ng5 {[%clk 0:01:30.3]} 24... Bxc1 {[%clk 0:01:42.5]} 25. Qxc1 {[%clk
0:01:30.1]} 25... Rbe8 {[%clk 0:01:41.4]} 26. Bxd4 {[%clk 0:01:29.4]} 26... cxd4
{[%clk 0:01:41.6]} 27. Ne6 {[%clk 0:01:29.8]} 27... Rf6 {[%clk 0:01:27.3]} 28.
Qf4 {[%clk 0:01:20.4]} 28... Rfxe6 {[%clk 0:01:19.7]} 29. dxe6 {[%clk
0:01:20.1]} 29... Qxe6 {[%clk 0:01:20.6]} 30. Qxd4 {[%clk 0:01:18.3]} 30... Qe5
{[%clk 0:01:20.5]} 31. Qc4+ {[%clk 0:01:13.5]} 31... Kg7 {[%clk 0:01:19.6]} 32.
Rf2 {[%clk 0:01:01.7]} 32... Qc5 {[%clk 0:01:13]} 33. Qf4 {[%clk 0:00:52.9]}
33... Qe3 {[%clk 0:01:03.8]} 34. Qxd6 {[%clk 0:00:22.1]} 34... Qxf2 {[%clk
0:01:01.9]} 35. Qd7+ {[%clk 0:00:22.5]} 35... Kf8 {[%clk 0:01:01.7]} 36. Qd6+
{[%clk 0:00:22.9]} 36... Kf7 {[%clk 0:00:55.8]} 37. Qd7+ {[%clk 0:00:20.4]}
37... Re7 {[%clk 0:00:55.7]} 38. Qd5+ {[%clk 0:00:20.8]} 38... Kg7 {[%clk
0:00:55.7]} 39. Qd4+ {[%clk 0:00:19.5]} 39... Qxd4 {[%clk 0:00:55.3]} 0-1

[Event "Late-Titled-Tuesday-Blitz-April-30-2024"]
[Site "Chess.com"]
[Date "2024.04.30"]
[Round "10"]
[White "falzehope0"]
[Black "egnfanclub"]
[Result "1-0"]
[WhiteElo "2417"]
[BlackElo "2350"]
[TimeControl "180+1"]
[EndTime "15:53:28 PDT"]
[Termination "falzehope0 won on time"]

1. d4 {[%clk 0:03:00.9]} 1... d5 {[%clk 0:02:58.4]} 2. e3 {[%clk 0:03:01.8]}
2... Nf6 {[%clk 0:02:58]} 3. Bd3 {[%clk 0:02:59.8]} 3... e6 {[%clk 0:02:54.7]}
4. f4 {[%clk 0:02:59.4]} 4... c5 {[%clk 0:02:55]} 5. c3 {[%clk 0:02:59.1]} 5...
Nc6 {[%clk 0:02:55.4]} 6. Nf3 {[%clk 0:02:58.8]} 6... Qc7 {[%clk 0:02:50]} 7.
O-O {[%clk 0:02:57]} 7... b6 {[%clk 0:02:33.7]} 8. Ne5 {[%clk 0:02:54.4]} 8...
Bb7 {[%clk 0:02:29.3]} 9. Nd2 {[%clk 0:02:53.7]} 9... Be7 {[%clk 0:02:19.1]} 10.
Qf3 {[%clk 0:02:52.6]} 10... O-O {[%clk 0:02:10.1]} 11. g4 {[%clk 0:02:51.6]}
11... Nxe5 {[%clk 0:02:04.9]} 12. fxe5 {[%clk 0:02:51.2]} 12... Ne4 {[%clk
0:02:05.8]} 13. Nxe4 {[%clk 0:02:50.8]} 13... dxe4 {[%clk 0:02:06.7]} 14. Bxe4
{[%clk 0:02:51.7]} 14... Bxe4 {[%clk 0:02:06.2]} 15. Qxe4 {[%clk 0:02:52.6]}
15... Rad8 {[%clk 0:01:56.1]} 16. Bd2 {[%clk 0:02:50.1]} 16... b5 {[%clk
0:01:52.8]} 17. Rf3 {[%clk 0:02:47.8]} 17... Bg5 {[%clk 0:01:47.8]} 18. Raf1
{[%clk 0:02:39.6]} 18... cxd4 {[%clk 0:01:46.4]} 19. cxd4 {[%clk 0:02:39.5]}
19... Rc8 {[%clk 0:01:28.2]} 20. Bb4 {[%clk 0:02:38.6]} 20... Be7 {[%clk
0:01:24.3]} 21. Bxe7 {[%clk 0:02:08.6]} 21... Qxe7 {[%clk 0:01:25.2]} 22. Rh3
{[%clk 0:02:06.9]} 22... g6 {[%clk 0:01:12.8]} 23. Qf4 {[%clk 0:02:05.8]} 23...
Rc7 {[%clk 0:00:50.6]} 24. g5 {[%clk 0:01:53.3]} 24... h5 {[%clk 0:00:39.6]} 25.
gxh6 {[%clk 0:01:52.7]} 25... Kh7 {[%clk 0:00:38.5]} 26. Rhf3 {[%clk 0:01:49.3]}
26... Rc2 {[%clk 0:00:31.4]} 27. h4 {[%clk 0:01:39.7]} 27... Rxb2 {[%clk
0:00:27.7]} 28. h5 {[%clk 0:01:40]} 28... g5 {[%clk 0:00:25.3]} 29. Qe4+ {[%clk
0:01:38.6]} 29... Kh8 {[%clk 0:00:22.4]} 30. Rf6 {[%clk 0:01:33.9]} 30... a5
{[%clk 0:00:09.7]} 31. h7 {[%clk 0:01:31.8]} 31... b4 {[%clk 0:00:05.1]} 32. Qg4
{[%clk 0:01:30.4]} 32... Rxa2 {[%clk 0:00:01.8]} 33. Qxg5 {[%clk 0:01:30.8]}
33... Qb7 {[%clk 0:00:02]} 34. R6f3 {[%clk 0:01:11]} 34... Qe4 {[%clk
0:00:01.2]} 35. Rg3 {[%clk 0:01:06.5]} 35... Qxh7 {[%clk 0:00:01]} 36. Qf6+
{[%clk 0:01:01.6]} 1-0

[Event "Late-Titled-Tuesday-Blitz-April-30-2024"]
[Site "Chess.com"]
[Date "2024.04.30"]
[Round "10"]
[White "brother-bear"]
[Black "A4RookA3"]
[Result "1-0"]
[WhiteElo "2093"]
[BlackElo "2358"]
[TimeControl "180+1"]
[EndTime "15:53:30 PDT"]
[Termination "brother-bear won by resignation"]

1. d4 {[%clk 0:03:00]} 1... Nf6 {[%clk 0:03:00.9]} 2. c4 {[%clk 0:02:58.8]} 2...
a5 {[%clk 0:02:54.5]} 3. Nc3 {[%clk 0:02:56.3]} 3... b6 {[%clk 0:02:53]} 4. e4
{[%clk 0:02:55.6]} 4... Bb7 {[%clk 0:02:51.6]} 5. Bd3 {[%clk 0:02:55.6]} 5... e6
{[%clk 0:02:48]} 6. Nge2 {[%clk 0:02:46.5]} 6... d5 {[%clk 0:02:40.6]} 7. cxd5
{[%clk 0:02:41.7]} 7... exd5 {[%clk 0:02:41.5]} 8. e5 {[%clk 0:02:42.1]} 8...
Ne4 {[%clk 0:02:37]} 9. f3 {[%clk 0:02:27.1]} 9... Nxc3 {[%clk 0:02:19.7]} 10.
bxc3 {[%clk 0:02:27.2]} 10... Be7 {[%clk 0:02:18.4]} 11. O-O {[%clk 0:02:26.8]}
11... O-O {[%clk 0:01:31]} 12. Qc2 {[%clk 0:02:20.4]} 12... g6 {[%clk
0:01:29.5]} 13. f4 {[%clk 0:02:20]} 13... f5 {[%clk 0:01:25.5]} 14. g4 {[%clk
0:01:57.8]} 14... Bc8 {[%clk 0:01:09.6]} 15. Ng3 {[%clk 0:01:55.1]} 15... Bh4
{[%clk 0:01:05.9]} 16. Ba3 {[%clk 0:01:19.5]} 16... Rf7 {[%clk 0:00:44.4]} 17.
gxf5 {[%clk 0:01:09.7]} 17... Bxg3 {[%clk 0:00:41.6]} 18. fxg6 {[%clk
0:01:08.4]} 18... Rg7 {[%clk 0:00:38.1]} 19. hxg3 {[%clk 0:01:03.3]} 19... Ba6
{[%clk 0:00:26]} 20. f5 {[%clk 0:00:35.6]} 20... Qg5 {[%clk 0:00:15.2]} 21. Bxa6
{[%clk 0:00:22.3]} 21... Nxa6 {[%clk 0:00:09.7]} 22. Qg2 {[%clk 0:00:19.2]}
22... Qxg3 {[%clk 0:00:09.6]} 23. Qxg3 {[%clk 0:00:18.6]} 1-0

[Event "Late-Titled-Tuesday-Blitz-April-30-2024"]
[Site "Chess.com"]
[Date "2024.04.30"]
[Round "10"]
[White "ab-lsv"]
[Black "Djager97"]
[Result "0-1"]
[WhiteElo "2391"]
[BlackElo "2581"]
[TimeControl "180+1"]
[EndTime "15:53:32 PDT"]
[Termination "Djager97 won by checkmate"]

1. d4 {[%clk 0:02:59.7]} 1... d5 {[%clk 0:02:59.7]} 2. c4 {[%clk 0:03:00]} 2...
e6 {[%clk 0:02:59.8]} 3. Nc3 {[%clk 0:03:00.3]} 3... c6 {[%clk 0:02:59.8]} 4. e3
{[%clk 0:02:58.6]} 4... Nf6 {[%clk 0:02:59.3]} 5. Nf3 {[%clk 0:02:58.2]} 5...
Nbd7 {[%clk 0:02:59.4]} 6. Be2 {[%clk 0:02:58.3]} 6... Bd6 {[%clk 0:02:59.2]} 7.
O-O {[%clk 0:02:57.9]} 7... O-O {[%clk 0:02:58.2]} 8. b3 {[%clk 0:02:58.2]} 8...
b6 {[%clk 0:02:57]} 9. Bb2 {[%clk 0:02:57]} 9... Bb7 {[%clk 0:02:57.1]} 10. Bd3
{[%clk 0:02:56.6]} 10... Rc8 {[%clk 0:02:51.4]} 11. e4 {[%clk 0:02:45.5]} 11...
dxe4 {[%clk 0:02:50.2]} 12. Nxe4 {[%clk 0:02:46.4]} 12... Nxe4 {[%clk
0:02:48.9]} 13. Bxe4 {[%clk 0:02:47.3]} 13... Nf6 {[%clk 0:02:48.8]} 14. Bc2
{[%clk 0:02:40.8]} 14... c5 {[%clk 0:02:48.7]} 15. Re1 {[%clk 0:02:32.6]} 15...
Bxf3 {[%clk 0:02:35.7]} 16. Qxf3 {[%clk 0:02:32]} 16... cxd4 {[%clk 0:02:35.9]}
17. Bxd4 {[%clk 0:01:55.2]} 17... Bxh2+ {[%clk 0:02:35.1]} 18. Kxh2 {[%clk
0:01:56.1]} 18... Qxd4 {[%clk 0:02:35.2]} 19. Rad1 {[%clk 0:01:54.9]} 19... Qc5
{[%clk 0:02:29]} 20. g4 {[%clk 0:01:43.9]} 20... Rfd8 {[%clk 0:02:23.6]} 21. Qf4
{[%clk 0:01:27.2]} 21... h6 {[%clk 0:02:19.1]} 22. Rg1 {[%clk 0:01:18.5]} 22...
Kf8 {[%clk 0:02:11.2]} 23. g5 {[%clk 0:01:10.2]} 23... Rxd1 {[%clk 0:02:02.8]}
24. Bxd1 {[%clk 0:01:06.9]} 24... hxg5 {[%clk 0:01:59.3]} 25. Rxg5 {[%clk
0:01:06.6]} 25... Qc7 {[%clk 0:01:57.6]} 26. Qxc7 {[%clk 0:00:31.2]} 26... Rxc7
{[%clk 0:01:58.5]} 27. Bf3 {[%clk 0:00:30.1]} 27... Rd7 {[%clk 0:01:57.6]} 28.
c5 {[%clk 0:00:23.4]} 28... Rd2 {[%clk 0:01:35.7]} 29. cxb6 {[%clk 0:00:23.2]}
29... axb6 {[%clk 0:01:33.2]} 30. Rb5 {[%clk 0:00:19.4]} 30... Rxf2+ {[%clk
0:01:29.6]} 31. Kg3 {[%clk 0:00:19.8]} 31... Rxa2 {[%clk 0:01:29.4]} 32. Rxb6
{[%clk 0:00:20]} 32... g5 {[%clk 0:01:28.5]} 33. b4 {[%clk 0:00:19.2]} 33... Ra3
{[%clk 0:01:23.7]} 34. Kg2 {[%clk 0:00:15.3]} 34... g4 {[%clk 0:01:16.9]} 35.
Bc6 {[%clk 0:00:15]} 35... Nh5 {[%clk 0:01:06.4]} 36. b5 {[%clk 0:00:13.5]}
36... Nf4+ {[%clk 0:01:06.5]} 37. Kf1 {[%clk 0:00:12.5]} 37... g3 {[%clk
0:01:06.4]} 38. Rb8+ {[%clk 0:00:10]} 38... Ke7 {[%clk 0:01:05.3]} 39. Rg8
{[%clk 0:00:10.2]} 39... Ra1# {[%clk 0:01:04.2]} 0-1

[Event "Late-Titled-Tuesday-Blitz-April-30-2024"]
[Site "Chess.com"]
[Date "2024.04.30"]
[Round "10"]
[White "Moltini"]
[Black "maracayo"]
[Result "1-0"]
[WhiteElo "2497"]
[BlackElo "2366"]
[TimeControl "180+1"]
[EndTime "15:53:34 PDT"]
[Termination "Moltini won on time"]

1. d4 {[%clk 0:03:00.9]} 1... d6 {[%clk 0:02:59.9]} 2. c4 {[%clk 0:03:01.3]}
2... Nf6 {[%clk 0:02:59.8]} 3. Nc3 {[%clk 0:03:01.7]} 3... e5 {[%clk 0:03:00.1]}
4. d5 {[%clk 0:03:02.3]} 4... Be7 {[%clk 0:02:59.4]} 5. e4 {[%clk 0:03:02.7]}
5... O-O {[%clk 0:03:00.2]} 6. g3 {[%clk 0:03:03.2]} 6... Ne8 {[%clk 0:03:01.1]}
7. Bg2 {[%clk 0:03:03.8]} 7... g6 {[%clk 0:03:02]} 8. Nge2 {[%clk 0:03:04.2]}
8... Ng7 {[%clk 0:03:02.8]} 9. f4 {[%clk 0:03:04.5]} 9... f5 {[%clk 0:03:03.7]}
10. O-O {[%clk 0:03:04.5]} 10... exf4 {[%clk 0:03:02]} 11. Nxf4 {[%clk
0:03:04.6]} 11... Nd7 {[%clk 0:03:01.7]} 12. b3 {[%clk 0:03:03.7]} 12... Bf6
{[%clk 0:03:00.7]} 13. Bb2 {[%clk 0:03:04.1]} 13... Nc5 {[%clk 0:03:00.1]} 14.
Qc2 {[%clk 0:03:02.5]} 14... a5 {[%clk 0:02:59.5]} 15. Rae1 {[%clk 0:03:01.7]}
15... Bd7 {[%clk 0:02:49.5]} 16. a4 {[%clk 0:02:57.8]} 16... Be5 {[%clk
0:02:44.5]} 17. Nd1 {[%clk 0:02:48.8]} 17... fxe4 {[%clk 0:02:39.2]} 18. Bxe5
{[%clk 0:02:44.8]} 18... dxe5 {[%clk 0:02:37.9]} 19. Ne2 {[%clk 0:02:41.7]}
19... Nd3 {[%clk 0:02:26.1]} 20. Rxf8+ {[%clk 0:02:41.1]} 20... Qxf8 {[%clk
0:02:26.2]} 21. Rf1 {[%clk 0:02:41.5]} 21... Qc5+ {[%clk 0:02:25.2]} 22. Kh1
{[%clk 0:02:40.7]} 22... Bf5 {[%clk 0:02:20.4]} 23. Nec3 {[%clk 0:02:31.3]}
23... e3 {[%clk 0:01:31.2]} 24. Qe2 {[%clk 0:02:29.2]} 24... Qd4 {[%clk
0:01:19.4]} 25. Qxe3 {[%clk 0:02:25.1]} 25... Nc5 {[%clk 0:01:13.5]} 26. Nb5
{[%clk 0:02:19.2]} 26... Qxe3 {[%clk 0:01:12.3]} 27. Nxe3 {[%clk 0:02:20.1]}
27... Rc8 {[%clk 0:01:10.2]} 28. Nxf5 {[%clk 0:02:06.3]} 28... Nxf5 {[%clk
0:01:08.9]} 29. Bh3 {[%clk 0:02:06.4]} 29... Nxb3 {[%clk 0:01:00.5]} 30. Bxf5
{[%clk 0:02:06]} 30... gxf5 {[%clk 0:01:01.3]} 31. Rxf5 {[%clk 0:02:06.3]} 31...
c6 {[%clk 0:00:59]} 32. Nd6 {[%clk 0:02:04.3]} 32... Rb8 {[%clk 0:00:52.7]} 33.
Rxe5 {[%clk 0:02:04.3]} 33... cxd5 {[%clk 0:00:52.1]} 34. Rxd5 {[%clk
0:01:56.8]} 34... Rd8 {[%clk 0:00:47.3]} 35. Nxb7 {[%clk 0:01:43.6]} 35... Re8
{[%clk 0:00:47.1]} 36. Nxa5 {[%clk 0:01:41.2]} 36... Re1+ {[%clk 0:00:45.2]} 37.
Kg2 {[%clk 0:01:41.3]} 37... Nxa5 {[%clk 0:00:39.6]} 38. Rxa5 {[%clk 0:01:41.1]}
38... Rc1 {[%clk 0:00:40.3]} 39. c5 {[%clk 0:01:40]} 39... h5 {[%clk 0:00:38.6]}
40. h3 {[%clk 0:01:38.2]} 40... Rc2+ {[%clk 0:00:39.5]} 41. Kf3 {[%clk
0:01:38.5]} 41... Rc3+ {[%clk 0:00:39.5]} 42. Kf4 {[%clk 0:01:39]} 42... h4
{[%clk 0:00:39.2]} 43. gxh4 {[%clk 0:01:38.8]} 43... Rxh3 {[%clk 0:00:40]} 44.
Kg5 {[%clk 0:01:38.1]} 44... Rc3 {[%clk 0:00:40.8]} 45. h5 {[%clk 0:01:37.4]}
45... Kf7 {[%clk 0:00:39.3]} 46. Ra7+ {[%clk 0:01:37.3]} 46... Ke6 {[%clk
0:00:39.3]} 47. Rc7 {[%clk 0:01:37.6]} 47... Rg3+ {[%clk 0:00:38]} 48. Kh6
{[%clk 0:01:38]} 48... Ra3 {[%clk 0:00:37.2]} 49. Kh7 {[%clk 0:01:35]} 49...
Rxa4 {[%clk 0:00:36.5]} 50. h6 {[%clk 0:01:35.5]} 50... Rg4 {[%clk 0:00:35]} 51.
Rg7 {[%clk 0:01:34.8]} 51... Rh4 {[%clk 0:00:34.4]} 52. c6 {[%clk 0:01:35.2]}
1-0

[Event "Late-Titled-Tuesday-Blitz-April-30-2024"]
[Site "Chess.com"]
[Date "2024.04.30"]
[Round "10"]
[White "grandmastergauri"]
[Black "RandomNoob04"]
[Result "1/2-1/2"]
[WhiteElo "2738"]
[BlackElo "2742"]
[TimeControl "180+1"]
[EndTime "15:53:41 PDT"]
[Termination "Game drawn by repetition"]

1. d4 {[%clk 0:03:00.9]} 1... Nf6 {[%clk 0:02:56.3]} 2. Nf3 {[%clk 0:03:01.1]}
2... c5 {[%clk 0:02:56.5]} 3. d5 {[%clk 0:03:01.3]} 3... b5 {[%clk 0:02:54.7]}
4. e4 {[%clk 0:03:01.1]} 4... Nxe4 {[%clk 0:02:53.8]} 5. Bd3 {[%clk 0:02:59.9]}
5... Nf6 {[%clk 0:02:52.8]} 6. Bxb5 {[%clk 0:02:56.2]} 6... e6 {[%clk
0:02:46.2]} 7. Nc3 {[%clk 0:02:55.1]} 7... Bb7 {[%clk 0:02:20.1]} 8. Bc4 {[%clk
0:02:40.3]} 8... exd5 {[%clk 0:01:52]} 9. Nxd5 {[%clk 0:02:39.1]} 9... Nxd5
{[%clk 0:01:52.6]} 10. Bxd5 {[%clk 0:02:39]} 10... Bxd5 {[%clk 0:01:53.5]} 11.
Qxd5 {[%clk 0:02:38.8]} 11... Nc6 {[%clk 0:01:54.4]} 12. Bg5 {[%clk 0:02:16.2]}
12... Be7 {[%clk 0:01:52.2]} 13. O-O {[%clk 0:02:16.5]} 13... O-O {[%clk
0:01:49]} 14. Bxe7 {[%clk 0:02:16.4]} 14... Qxe7 {[%clk 0:01:49.1]} 15. Rfe1
{[%clk 0:02:16.2]} 15... Qf6 {[%clk 0:01:43.1]} 16. c3 {[%clk 0:02:06.2]} 16...
Rab8 {[%clk 0:01:30.9]} 17. Re2 {[%clk 0:02:03.4]} 17... h6 {[%clk 0:00:46.7]}
18. Rd1 {[%clk 0:02:02.7]} 18... Rfe8 {[%clk 0:00:28.6]} 19. Red2 {[%clk
0:01:47.8]} 19... Ne5 {[%clk 0:00:26.4]} 20. Nxe5 {[%clk 0:01:43.9]} 20... Qxe5
{[%clk 0:00:26.9]} 21. Qxe5 {[%clk 0:01:43.1]} 21... Rxe5 {[%clk 0:00:27.8]} 22.
b3 {[%clk 0:01:37.9]} 22... c4 {[%clk 0:00:22.2]} 23. b4 {[%clk 0:01:36.7]}
23... a5 {[%clk 0:00:22.7]} 24. a3 {[%clk 0:01:37]} 24... axb4 {[%clk
0:00:22.7]} 25. axb4 {[%clk 0:01:37.6]} 25... Ra8 {[%clk 0:00:22.2]} 26. Rd4
{[%clk 0:01:32.1]} 26... d5 {[%clk 0:00:21.9]} 27. h3 {[%clk 0:01:15.9]} 27...
Ra3 {[%clk 0:00:20.6]} 28. Rxd5 {[%clk 0:01:08.1]} 28... Rxd5 {[%clk 0:00:21.5]}
29. Rxd5 {[%clk 0:01:08.4]} 29... Rxc3 {[%clk 0:00:22.4]} 30. Rc5 {[%clk
0:01:07.5]} 30... Rc1+ {[%clk 0:00:22.5]} 31. Kh2 {[%clk 0:01:08]} 31... c3
{[%clk 0:00:23.4]} 32. h4 {[%clk 0:01:05.2]} 32... c2 {[%clk 0:00:23.2]} 33. h5
{[%clk 0:01:05.1]} 33... Rb1 {[%clk 0:00:22.4]} 34. Rxc2 {[%clk 0:01:04.7]}
34... Rxb4 {[%clk 0:00:23.1]} 35. g3 {[%clk 0:01:02.7]} 35... Rb5 {[%clk
0:00:22.3]} 36. g4 {[%clk 0:01:00.8]} 36... f5 {[%clk 0:00:22.3]} 37. Rc8+
{[%clk 0:00:58.7]} 37... Kh7 {[%clk 0:00:22.2]} 38. f3 {[%clk 0:00:54.4]} 38...
fxg4 {[%clk 0:00:22.8]} 39. fxg4 {[%clk 0:00:54.8]} 39... Rb3 {[%clk 0:00:23.5]}
40. Kg2 {[%clk 0:00:54.9]} 40... Ra3 {[%clk 0:00:23.9]} 41. Rc6 {[%clk
0:00:54.4]} 41... Rb3 {[%clk 0:00:23.5]} 42. Re6 {[%clk 0:00:54.1]} 42... Ra3
{[%clk 0:00:24]} 43. Kf2 {[%clk 0:00:54.4]} 43... Rb3 {[%clk 0:00:24.5]} 44. Re3
{[%clk 0:00:54.7]} 44... Rxe3 {[%clk 0:00:23.3]} 45. Kxe3 {[%clk 0:00:55.6]}
45... g6 {[%clk 0:00:23.8]} 46. Kf4 {[%clk 0:00:51.9]} 46... gxh5 {[%clk
0:00:23.9]} 47. gxh5 {[%clk 0:00:52]} 47... Kg7 {[%clk 0:00:24.1]} 48. Kf5
{[%clk 0:00:52.7]} 48... Kf7 {[%clk 0:00:24.7]} 49. Ke5 {[%clk 0:00:52.9]} 49...
Ke7 {[%clk 0:00:25.4]} 50. Kf5 {[%clk 0:00:53.6]} 50... Kf7 {[%clk 0:00:26.1]}
51. Ke5 {[%clk 0:00:54.3]} 51... Ke7 {[%clk 0:00:26.7]} 52. Kf5 {[%clk 0:00:55]}
52... Kf7 {[%clk 0:00:27.4]} 1/2-1/2

[Event "Late-Titled-Tuesday-Blitz-April-30-2024"]
[Site "Chess.com"]
[Date "2024.04.30"]
[Round "10"]
[White "Laico"]
[Black "Mugiwara2b"]
[Result "0-1"]
[WhiteElo "2422"]
[BlackElo "2587"]
[TimeControl "180+1"]
[EndTime "15:53:42 PDT"]
[Termination "Mugiwara2b won by resignation"]

1. e4 {[%clk 0:02:38.6]} 1... e6 {[%clk 0:02:52.7]} 2. d4 {[%clk 0:02:38]} 2...
d5 {[%clk 0:02:53.2]} 3. Nd2 {[%clk 0:02:38.5]} 3... Ne7 {[%clk 0:02:52.1]} 4.
Ngf3 {[%clk 0:02:29.2]} 4... Nd7 {[%clk 0:02:52.4]} 5. c4 {[%clk 0:02:24]} 5...
dxe4 {[%clk 0:02:40.1]} 6. Nxe4 {[%clk 0:02:24.9]} 6... b6 {[%clk 0:02:31.4]} 7.
Bd3 {[%clk 0:02:20]} 7... Bb7 {[%clk 0:02:31.4]} 8. O-O {[%clk 0:02:19.1]} 8...
Ng6 {[%clk 0:02:26.1]} 9. d5 {[%clk 0:02:05.8]} 9... exd5 {[%clk 0:02:22.2]} 10.
cxd5 {[%clk 0:02:02.8]} 10... Be7 {[%clk 0:02:03]} 11. Neg5 {[%clk 0:01:28.9]}
11... O-O {[%clk 0:01:55.7]} 12. Bxg6 {[%clk 0:01:26.3]} 12... hxg6 {[%clk
0:01:53.2]} 13. Qd4 {[%clk 0:01:23.1]} 13... Nf6 {[%clk 0:01:43.1]} 14. Qh4
{[%clk 0:01:07.7]} 14... Qxd5 {[%clk 0:01:42.1]} 15. Bf4 {[%clk 0:01:07.4]}
15... Nh5 {[%clk 0:01:35.7]} 16. Bxc7 {[%clk 0:01:02.5]} 16... Bxg5 {[%clk
0:01:31.7]} 17. Qxg5 {[%clk 0:01:03.4]} 17... Rac8 {[%clk 0:01:28.5]} 18. Be5
{[%clk 0:00:53.1]} 18... Rc5 {[%clk 0:00:25.9]} 19. Rfd1 {[%clk 0:00:35.2]}
19... Qe6 {[%clk 0:00:23.7]} 20. Rd6 {[%clk 0:00:22]} 20... Qc4 {[%clk
0:00:18.5]} 21. b3 {[%clk 0:00:18.4]} 21... Qc2 {[%clk 0:00:16.3]} 22. Nd4
{[%clk 0:00:18.2]} 22... Qc3 {[%clk 0:00:13.3]} 23. Nc6 {[%clk 0:00:17.8]} 23...
Qxa1+ {[%clk 0:00:07.6]} 24. Bxa1 {[%clk 0:00:17.3]} 24... Rxg5 {[%clk
0:00:08.3]} 0-1

[Event "Late-Titled-Tuesday-Blitz-April-30-2024"]
[Site "Chess.com"]
[Date "2024.04.30"]
[Round "10"]
[White "ozates"]
[Black "KogotBobra17"]
[Result "1-0"]
[WhiteElo "2641"]
[BlackElo "2766"]
[TimeControl "180+1"]
[EndTime "15:53:43 PDT"]
[Termination "ozates won by resignation"]

1. e4 {[%clk 0:03:00.9]} 1... c5 {[%clk 0:02:59.4]} 2. Nf3 {[%clk 0:03:01]} 2...
Nc6 {[%clk 0:02:59.7]} 3. Bb5 {[%clk 0:03:01.2]} 3... g5 {[%clk 0:03:00.1]} 4.
h3 {[%clk 0:02:51.2]} 4... Nf6 {[%clk 0:03:00]} 5. Nc3 {[%clk 0:02:47.8]} 5...
g4 {[%clk 0:02:57.8]} 6. hxg4 {[%clk 0:02:47.2]} 6... Nxg4 {[%clk 0:02:58.7]} 7.
d4 {[%clk 0:02:45.8]} 7... a6 {[%clk 0:02:37.5]} 8. Bc4 {[%clk 0:02:40.9]} 8...
Bg7 {[%clk 0:02:31.2]} 9. Bxf7+ {[%clk 0:02:37.1]} 9... Kxf7 {[%clk 0:02:31.5]}
10. Ng5+ {[%clk 0:02:37.2]} 10... Kg8 {[%clk 0:02:28.5]} 11. Qxg4 {[%clk
0:02:36.5]} 11... Nxd4 {[%clk 0:02:29.1]} 12. Qh5 {[%clk 0:01:40]} 12... Qf8
{[%clk 0:02:10.4]} 13. Nxh7 {[%clk 0:01:34.5]} 13... Nxc2+ {[%clk 0:01:46.3]}
14. Kd1 {[%clk 0:01:21.8]} 14... Qxf2 {[%clk 0:01:45.8]} 15. Qe8+ {[%clk
0:01:10.4]} 15... Bf8 {[%clk 0:01:45.5]} 16. Qg6+ {[%clk 0:00:55.1]} 16... Bg7
{[%clk 0:01:45.5]} 17. Nd5 {[%clk 0:00:46.1]} 17... Rxh7 {[%clk 0:00:45.1]} 18.
Qxh7+ {[%clk 0:00:40.7]} 18... Kf8 {[%clk 0:00:40.5]} 19. Bh6 {[%clk 0:00:30.6]}
19... Qd4+ {[%clk 0:00:19.2]} 20. Kxc2 {[%clk 0:00:20.4]} 20... Qxb2+ {[%clk
0:00:19.4]} 21. Kd3 {[%clk 0:00:18.7]} 21... Qd4+ {[%clk 0:00:11.6]} 22. Ke2
{[%clk 0:00:19]} 22... Qxe4+ {[%clk 0:00:03.7]} 23. Qxe4 {[%clk 0:00:18.6]} 1-0